[Event "CZE-ch Youth G10-G12-G14 2022"]
[Site "Luhacovice"]
[Date "2022.03.14"]
[Round "4.18"]
[White "Barteckova, Nikol"]
[Black "Krisicova Neli"]
[Result "1/2-1/2"]
[ECO "C56"]
[WhiteElo "1140"]
[BlackElo "1093"]
[Annotator "NA"]
[PlyCount "109"]
[EventDate "2022.03.12"]
[EventType "swiss"]
[EventCountry "CZE"]
[SourceTitle "playchess.com"]
[Source "ChessBase"]
[SourceQuality "1"]
[TimeControl "40/5400+30:1800+30"]

1. e4 {[%emt 0:07:56]} e5 {[%emt 0:00:11]} 2. Nf3 {[%emt 0:00:50]} Nc6 {[%emt 0:00:45]} 3. d4 {[%emt 0:01:13]} exd4 {[%emt 0:01:05]} 4. Bc4 {[%emt 0:00:56]} Nf6 {[%emt 0:02:19]} 5. e5 {[%emt 0:00:41]} d5 {[%emt 0:00:21]} 6. Bb5 {[%emt 0:00:21]} Nd7 {[%emt 0:00:45]} 7. Bf4 {[%emt 0:01:03]} Be7 {[%emt 0:01:38]} 8. Nxd4 {[%emt 0:00:58]} Nxd4 {[%emt 0:01:28]} 9. Qxd4 {[%emt 0:02:35]} c6 {[%emt 0:03:43]} 10. Be2 {[%emt 0:00:59]} Bc5 {[%emt 0:00:30]} 11. Qd1 {[%emt 0:00:30]} Qe7 {[%emt 0:00:30]} 12. O-O {[%emt 0:01:17]} Nxe5 {[%emt 0:00:49]} 13. Re1 {[%emt 0:00:46]} O-O {[%emt 0:01:53]} 14. Bd3 {[%emt 0:02:04]} Bd6 {[%emt 0:01:50]} 15. Bg3 {[%emt 0:00:40]} Qf6 {[%emt 0:00:57]} 16. Nc3 {[%emt 0:01:31]} Nxd3 {[%emt 0:01:50]} 17. Qxd3 {[%emt 0:00:41]} Bf5 {[%emt 0:01:28]} 18. Qd2 {[%emt 0:01:11]} Rfe8 {[%emt 0:01:42]} 19. Rac1 {[%emt 0:01:44]} Bb4 {[%emt 0:02:26]} 20. a3 {[%emt 0:01:17]} Ba5 {[%emt 0:01:09]} 21. b4 {[%emt 0:00:31]} Bb6 {[%emt 0:01:27]} 22. Na4 {[%emt 0:04:44]} Bd4 {[%emt 0:01:52]} 23. c3 {[%emt 0:00:30]} Be5 {[%emt 0:00:30]} 24. Bxe5 {[%emt 0:00:30]} Rxe5 {[%emt 0:00:30]} 25. Nc5 {[%emt 0:00:30]} b6 {[%emt 0:00:30]} 26. Nd3 {[%emt 0:00:30]} Re6 {[%emt 0:01:39]} 27. Nf4 {[%emt 0:02:17]} Re7 {[%emt 0:01:17]} 28. Nh5 {[%emt 0:00:43]} Rxe1+ {[%emt 0:00:40]} 29. Rxe1 {[%emt 0:00:23]} Qh4 {[%emt 0:01:52]} 30. Ng3 {[%emt 0:01:15]} Be4 {[%emt 0:01:22]} 31. f3 {[%emt 0:02:48]} Bg6 {[%emt 0:03:42]} 32. Qd4 {[%emt 0:00:42]} Qxd4+ {[%emt 0:00:43]} 33. cxd4 {[%emt 0:03:52]} Rc8 {[%emt 0:07:52]} 34. Re7 {[%emt 0:00:30]} a5 {[%emt 0:00:30]} 35. bxa5 {[%emt 0:00:30]} bxa5 {[%emt 0:00:30]} 36. Rd7 {[%emt 0:00:30]} a4 {[%emt 0:00:30]} 37. Re7 {[%emt 0:00:30]} Bc2 {[%emt 0:00:30]} 38. Ne2 {[%emt 0:00:30]} Kf8 {[%emt 0:00:30]} 39. Re3 {[%emt 0:00:30]} c5 {[%emt 0:00:30]} 40. Rc3 {[%emt 0:00:30]} Bb3 {[%emt 0:00:30]} 41. dxc5 {[%emt 0:30:30]} Bc4 {[%emt 0:30:30]} 42. Nf4 {[%emt 0:00:30]} Rxc5 {[%emt 0:00:30]} 43. Nxd5 {[%emt 0:00:24]} Rxd5 {[%emt 0:00:15]} 44. Rxc4 {[%emt 0:00:05]} Ra5 {[%emt 0:00:30]} 45. Kf2 {[%emt 0:00:26]} Ke7 {[%emt 0:00:31]} 46. g4 {[%emt 0:00:21]} Ke6 {[%emt 0:00:57]} 47. Rb4 {[%emt 0:00:20]} f5 {[%emt 0:01:17]} 48. h3 {[%emt 0:00:14]} h6 {[%emt 0:03:23]} 49. Kg3 {[%emt 0:00:15]} Ra6 {[%emt 0:01:24]} 50. h4 {[%emt 0:00:43]} Ra5 {[%emt 0:07:07]} 51. Kf4 {[%emt 0:03:07]} fxg4 {[%emt 0:05:28]} 52. fxg4 {[%emt 0:01:00]} g5+ {[%emt 0:01:02]} 53. hxg5 {[%emt 0:00:14]} hxg5+ {[%emt 0:00:07]} 54. Kg3 {[%emt 0:00:09]} Kd5 {[%emt 0:00:52]} 55. Kf3 {[%emt 0:00:17]} 1/2-1/2

[Event "CZE-ch Youth G10-G12-G14 2022"]
[Site "Luhacovice"]
[Date "2022.03.14"]
[Round "4.19"]
[White "Martinkova Klara"]
[Black "Hladka, Leontyna"]
[Result "1/2-1/2"]
[ECO "C50"]
[WhiteElo "1177"]
[BlackElo "1134"]
[Annotator "NA"]
[PlyCount "108"]
[EventDate "2022.03.12"]
[EventType "swiss"]
[EventCountry "CZE"]
[SourceTitle "playchess.com"]
[Source "ChessBase"]
[SourceQuality "1"]
[TimeControl "40/5400+30:1800+30"]

1. e4 {[%emt 0:00:04]} e5 {[%emt 0:00:12]} 2. Nf3 {[%emt 0:00:27]} Nc6 {[%emt 0:00:15]} 3. Bc4 {[%emt 0:00:24]} Nf6 {[%emt 0:00:16]} 4. d3 {[%emt 0:00:24]} Bc5 {[%emt 0:00:20]} 5. Nc3 {[%emt 0:00:53]} d6 {[%emt 0:00:17]} 6. Be3 {[%emt 0:01:04]} Bb6 {[%emt 0:01:06]} 7. h3 {[%emt 0:01:37]} Be6 {[%emt 0:00:18]} 8. Nd5 {[%emt 0:03:10]} Bxd5 {[%emt 0:01:02]} 9. Bxd5 {[%emt 0:01:45]} Nxd5 {[%emt 0:02:12]} 10. exd5 {[%emt 0:00:09]} Ne7 {[%emt 0:03:26]} 11. c4 {[%emt 0:01:35]} Nf5 {[%emt 0:00:42]} 12. Qa4+ {[%emt 0:02:35]} Qd7 {[%emt 0:00:51]} 13. Qxd7+ {[%emt 0:01:00]} Kxd7 {[%emt 0:00:11]} 14. Bxb6 {[%emt 0:00:12]} axb6 {[%emt 0:00:17]} 15. O-O {[%emt 0:00:58]} f6 {[%emt 0:01:01]} 16. Rfd1 {[%emt 0:01:01]} Rhe8 {[%emt 0:01:36]} 17. g4 {[%emt 0:06:19]} Nd4 {[%emt 0:01:42]} 18. Kg2 {[%emt 0:01:22]} c6 {[%emt 0:04:43]} 19. a3 {[%emt 0:02:06]} cxd5 {[%emt 0:08:03]} 20. cxd5 {[%emt 0:00:17]} Ra5 {[%emt 0:01:08]} 21. Nxd4 {[%emt 0:04:40]} exd4 {[%emt 0:00:20]} 22. Re1 {[%emt 0:00:40]} Re5 {[%emt 0:01:15]} 23. Re4 {[%emt 0:02:52]} Raxd5 {[%emt 0:00:36]} 24. Rc1 {[%emt 0:01:06]} Rc5 {[%emt 0:04:38]} 25. Rd1 {[%emt 0:05:50]} Rc2 {[%emt 0:07:38]} 26. Rxd4 {[%emt 0:04:30]} Rxb2 {[%emt 0:00:40]} 27. Rc1 {[%emt 0:01:43]} Ree2 {[%emt 0:01:24]} 28. Rf4 {[%emt 0:00:36]} Red2 {[%emt 0:01:06]} 29. Rc3 {[%emt 0:00:47]} Ra2 {[%emt 0:03:28]} 30. h4 {[%emt 0:02:56]} Rdc2 {[%emt 0:01:19]} 31. Rxc2 {[%emt 0:02:10]} Rxc2 {[%emt 0:00:09]} 32. Rf5 {[%emt 0:00:24]} Rc3 {[%emt 0:00:55]} 33. Rh5 {[%emt 0:00:26]} h6 {[%emt 0:02:02]} 34. g5 {[%emt 0:00:20]} Rc5 {[%emt 0:00:44]} 35. Kg3 {[%emt 0:01:35]} fxg5 {[%emt 0:00:52]} 36. hxg5 {[%emt 0:00:48]} Rxg5+ {[%emt 0:00:16]} 37. Rxg5 {[%emt 0:00:11]} hxg5 {[%emt 0:00:05]} 38. Kg4 {[%emt 0:00:05]} Ke6 {[%emt 0:00:25]} 39. Kxg5 {[%emt 0:00:13]} Kf7 {[%emt 0:03:00]} 40. Kf5 {[%emt 0:01:04]} b5 {[%emt 0:01:13]} 41. Ke4 {[%emt 0:31:17]} Ke6 {[%emt 0:30:36]} 42. Kd4 {[%emt 0:03:28]} b6 {[%emt 0:01:56]} 43. Kc3 {[%emt 0:01:48]} Kd5 {[%emt 0:01:15]} 44. Kb4 {[%emt 0:01:44]} Kc6 {[%emt 0:03:06]} 45. d4 {[%emt 0:02:42]} g5 {[%emt 0:01:31]} 46. f3 {[%emt 0:03:03]} Kd5 {[%emt 0:02:57]} 47. Kxb5 {[%emt 0:00:21]} Kxd4 {[%emt 0:00:28]} 48. Kxb6 {[%emt 0:00:17]} Kc4 {[%emt 0:01:01]} 49. a4 {[%emt 0:00:07]} d5 {[%emt 0:00:08]} 50. a5 {[%emt 0:00:07]} d4 {[%emt 0:00:17]} 51. a6 {[%emt 0:00:06]} d3 {[%emt 0:00:12]} 52. a7 {[%emt 0:00:05]} d2 {[%emt 0:00:02]} 53. a8=Q {[%emt 0:00:14]} d1=Q {[%emt 0:00:16]} 54. Qc6+ {[%emt 0:00:21]} Kb3 {[%emt 0:01:50]} 1/2-1/2

[Event "CZE-ch Youth G10-G12-G14 2022"]
[Site "Luhacovice"]
[Date "2022.03.14"]
[Round "4.20"]
[White "Bartova Hana"]
[Black "Archlebova Eva"]
[Result "1-0"]
[ECO "C50"]
[WhiteElo "1000"]
[BlackElo "1040"]
[Annotator "NA"]
[PlyCount "63"]
[EventDate "2022.03.12"]
[EventType "swiss"]
[EventCountry "CZE"]
[SourceTitle "playchess.com"]
[Source "ChessBase"]
[SourceQuality "1"]
[TimeControl "40/5400+30:1800+30"]

1. e4 {[%emt 0:00:03]} e5 {[%emt 0:00:03]} 2. Nf3 {[%emt 0:00:12]} Nc6 {[%emt 0:00:10]} 3. Bc4 {[%emt 0:00:09]} Nf6 {[%emt 0:00:20]} 4. d3 {[%emt 0:00:23]} h6 {[%emt 0:00:29]} 5. Nc3 {[%emt 0:00:34]} Bc5 {[%emt 0:00:17]} 6. O-O {[%emt 0:00:40]} d6 {[%emt 0:00:16]} 7. Na4 {[%emt 0:01:08]} Bg4 {[%emt 0:00:29]} 8. Nxc5 {[%emt 0:01:24]} dxc5 {[%emt 0:00:05]} 9. c3 {[%emt 0:01:30]} O-O {[%emt 0:01:11]} 10. Be3 {[%emt 0:02:22]} b6 {[%emt 0:08:06]} 11. Bb5 {[%emt 0:05:10]} Qd6 {[%emt 0:03:16]} 12. Bxc6 {[%emt 0:03:33]} Qxc6 {[%emt 0:00:15]} 13. h3 {[%emt 0:00:16]} Bh5 {[%emt 0:00:07]} 14. Nxe5 {[%emt 0:04:51]} Qe6 {[%emt 0:01:15]} 15. Nf3 {[%emt 0:00:32]} Rad8 {[%emt 0:01:34]} 16. Qe2 {[%emt 0:05:51]} c4 {[%emt 0:00:46]} 17. dxc4 {[%emt 0:04:03]} Qxe4 {[%emt 0:00:38]} 18. Rad1 {[%emt 0:01:31]} c5 {[%emt 0:05:41]} 19. Rxd8 {[%emt 0:02:47]} Rxd8 {[%emt 0:00:03]} 20. b4 {[%emt 0:14:01]} cxb4 {[%emt 0:01:49]} 21. cxb4 {[%emt 0:00:20]} b5 {[%emt 0:02:02]} 22. cxb5 {[%emt 0:00:46]} Qxb4 {[%emt 0:00:23]} 23. Bxa7 {[%emt 0:00:38]} Rd2 {[%emt 0:02:11]} 24. Qxd2 {[%emt 0:00:48]} Qxb5 {[%emt 0:04:07]} 25. Ra1 {[%emt 0:04:35]} Qb7 {[%emt 0:10:51]} 26. Be3 {[%emt 0:03:50]} Qe4 {[%emt 0:02:10]} 27. a4 {[%emt 0:01:39]} Bxf3 {[%emt 0:02:06]} 28. gxf3 {[%emt 0:00:31]} Qxf3 {[%emt 0:00:12]} 29. Qd8+ {[%emt 0:04:05]} Kh7 {[%emt 0:00:17]} 30. Qc8 {[%emt 0:01:29]} Nd5 {[%emt 0:05:02]} 31. Qg4 {[%emt 0:02:39]} Qf6 {[%emt 0:02:03]} 32. Bd4 {[%emt 0:03:32]} 1-0

[Event "CZE-ch Youth G10-G12-G14 2022"]
[Site "Luhacovice"]
[Date "2022.03.14"]
[Round "4.21"]
[White "Vaclavkova Klara"]
[Black "Nova Anezka"]
[Result "1-0"]
[ECO "D40"]
[WhiteElo "1000"]
[BlackElo "1111"]
[Annotator "NA"]
[PlyCount "64"]
[EventDate "2022.03.12"]
[EventType "swiss"]
[EventCountry "CZE"]
[SourceTitle "playchess.com"]
[Source "ChessBase"]
[SourceQuality "1"]
[TimeControl "40/5400+30:1800+30"]

1. d4 {[%emt 0:00:10]} d5 {[%emt 0:00:01]} 2. c4 {[%emt 0:00:06]} e6 {[%emt 0:00:08]} 3. Nf3 {[%emt 0:00:21]} Nf6 {[%emt 0:03:22]} 4. Nc3 {[%emt 0:01:07]} c5 {[%emt 0:06:33]} 5. e3 {[%emt 0:01:27]} Nc6 {[%emt 0:02:51]} 6. Bd3 {[%emt 0:00:42]} dxc4 {[%emt 0:03:56]} 7. Bxc4 {[%emt 0:00:10]} Bd6 {[%emt 0:03:32]} 8. O-O {[%emt 0:01:02]} Qc7 {[%emt 0:01:44]} 9. d5 {[%emt 0:01:18]} Ne5 {[%emt 0:09:56]} 10. Nb5 {[%emt 0:01:57]} Nxf3+ {[%emt 0:08:24]} 11. Qxf3 {[%emt 0:00:21]} Bxh2+ {[%emt 0:02:16]} 12. Kh1 {[%emt 0:00:25]} Qe5 {[%emt 0:01:50]} 13. d6 {[%emt 0:07:20]} O-O {[%emt 0:07:20]} 14. Qh3 {[%emt 0:01:10]} Qe4 {[%emt 0:02:59]} 15. Bb3 {[%emt 0:01:36]} Qd3 {[%emt 0:02:23]} 16. Rd1 {[%emt 0:00:39]} Qxb5 {[%emt 0:00:34]} 17. Qxh2 {[%emt 0:00:31]} Ne4 {[%emt 0:04:06]} 18. Bc2 {[%emt 0:04:24]} Nf6 {[%emt 0:15:34]} 19. Bd3 {[%emt 0:00:30]} Qc6 {[%emt 0:00:30]} 20. b3 {[%emt 0:00:30]} h6 {[%emt 0:00:30]} 21. Bb2 {[%emt 0:00:30]} Nd5 {[%emt 0:00:30]} 22. Qg3 {[%emt 0:01:02]} g6 {[%emt 0:02:08]} 23. Bxg6 {[%emt 0:00:23]} f6 {[%emt 0:05:04]} 24. Bh5+ {[%emt 0:01:42]} Kh8 {[%emt 0:00:31]} 25. Bf3 {[%emt 0:00:30]} Qd7 {[%emt 0:01:42]} 26. Bxd5 {[%emt 0:00:52]} exd5 {[%emt 0:00:07]} 27. Rxd5 {[%emt 0:00:10]} Qe7 {[%emt 0:03:48]} 28. Rad1 {[%emt 0:01:03]} Qf7 {[%emt 0:00:30]} 29. R5d4 {[%emt 0:00:48]} Be6 {[%emt 0:00:54]} 30. R4d2 {[%emt 0:00:30]} Qg7 {[%emt 0:01:02]} 31. Qh4 {[%emt 0:04:04]} Qg5 {[%emt 0:04:25]} 32. d7 {[%emt 0:00:31]} Kg7 {[%emt 0:00:47]} 1-0

[Event "CZE-ch Youth G10-G12-G14 2022"]
[Site "Luhacovice"]
[Date "2022.03.14"]
[Round "4.22"]
[White "Bouchalova, Kveta"]
[Black "Martinkovicova Nela"]
[Result "1-0"]
[ECO "C36"]
[WhiteElo "1303"]
[BlackElo "1032"]
[Annotator "NA"]
[PlyCount "113"]
[EventDate "2022.03.12"]
[EventType "swiss"]
[EventCountry "CZE"]
[SourceTitle "playchess.com"]
[Source "ChessBase"]
[SourceQuality "1"]
[TimeControl "40/5400+30:1800+30"]

1. e4 {[%emt 0:00:06]} e5 {[%emt 0:00:09]} 2. f4 {[%emt 0:00:05]} d5 {[%emt 0:00:46]} 3. exd5 {[%emt 0:00:08]} exf4 {[%emt 0:00:29]} 4. Nf3 {[%emt 0:00:09]} Qxd5 {[%emt 0:00:48]} 5. Nc3 {[%emt 0:00:40]} Qd8 {[%emt 0:01:02]} 6. d4 {[%emt 0:01:04]} Bd6 {[%emt 0:00:45]} 7. Bc4 {[%emt 0:03:01]} Bg4 {[%emt 0:01:25]} 8. O-O {[%emt 0:00:58]} Nd7 {[%emt 0:00:30]} 9. Nd5 {[%emt 0:06:30]} Nb6 {[%emt 0:02:50]} 10. Nxb6 {[%emt 0:02:29]} cxb6 {[%emt 0:00:52]} 11. Qe2+ {[%emt 0:05:22]} Qe7 {[%emt 0:00:53]} 12. Qxe7+ {[%emt 0:01:21]} Nxe7 {[%emt 0:00:17]} 13. Ng5 {[%emt 0:01:19]} O-O {[%emt 0:02:34]} 14. Bxf4 {[%emt 0:01:10]} Bxf4 {[%emt 0:00:46]} 15. Rxf4 {[%emt 0:00:16]} Bh5 {[%emt 0:02:36]} 16. Raf1 {[%emt 0:04:31]} h6 {[%emt 0:06:24]} 17. Nxf7 {[%emt 0:03:29]} b5 {[%emt 0:03:05]} 18. Nxh6+ {[%emt 0:05:15]} Kh7 {[%emt 0:01:01]} 19. Rxf8 {[%emt 0:02:15]} Rxf8 {[%emt 0:00:31]} 20. Rxf8 {[%emt 0:00:09]} bxc4 {[%emt 0:00:56]} 21. Nf5 {[%emt 0:02:22]} Nd5 {[%emt 0:03:07]} 22. c3 {[%emt 0:02:33]} g6 {[%emt 0:02:27]} 23. Rf7+ {[%emt 0:02:05]} Kh8 {[%emt 0:01:15]} 24. Ng3 {[%emt 0:00:41]} Bg4 {[%emt 0:01:11]} 25. Rxb7 {[%emt 0:01:38]} a5 {[%emt 0:02:08]} 26. Rb5 {[%emt 0:01:26]} Ne3 {[%emt 0:03:14]} 27. Rxa5 {[%emt 0:00:35]} Nd1 {[%emt 0:00:44]} 28. Rg5 {[%emt 0:01:45]} Bd7 {[%emt 0:01:03]} 29. Rxg6 {[%emt 0:01:08]} Nxb2 {[%emt 0:00:24]} 30. d5 {[%emt 0:01:42]} Na4 {[%emt 0:01:15]} 31. Ne2 {[%emt 0:00:54]} Kh7 {[%emt 0:00:43]} 32. Rg3 {[%emt 0:01:08]} Nb6 {[%emt 0:00:21]} 33. d6 {[%emt 0:02:00]} Nc8 {[%emt 0:01:00]} 34. Rg5 {[%emt 0:00:30]} Kh6 {[%emt 0:01:39]} 35. Rd5 {[%emt 0:00:48]} Nb6 {[%emt 0:00:48]} 36. Rd4 {[%emt 0:00:35]} Kg6 {[%emt 0:00:49]} 37. Rf4 {[%emt 0:00:48]} Nc8 {[%emt 0:00:24]} 38. Rxc4 {[%emt 0:00:33]} Be6 {[%emt 0:01:45]} 39. Rd4 {[%emt 0:02:01]} Kf5 {[%emt 0:02:16]} 40. d7 {[%emt 0:01:59]} Bxd7 {[%emt 0:00:31]} 41. Rxd7 {[%emt 0:30:32]} Nb6 {[%emt 0:30:16]} 42. Re7 {[%emt 0:02:05]} Nd5 {[%emt 0:00:28]} 43. Re8 {[%emt 0:01:18]} Nc7 {[%emt 0:01:10]} 44. Nd4+ {[%emt 0:01:12]} Kg6 {[%emt 0:01:01]} 45. Rf8 {[%emt 0:01:18]} Nd5 {[%emt 0:00:24]} 46. c4 {[%emt 0:00:38]} Nb4 {[%emt 0:00:34]} 47. c5 {[%emt 0:00:13]} Kg7 {[%emt 0:00:33]} 48. Rf2 {[%emt 0:00:30]} Kg6 {[%emt 0:00:13]} 49. c6 {[%emt 0:00:15]} Nxc6 {[%emt 0:00:27]} 50. Nxc6 {[%emt 0:00:04]} Kg5 {[%emt 0:00:07]} 51. a4 {[%emt 0:00:11]} Kg4 {[%emt 0:00:11]} 52. a5 {[%emt 0:00:10]} Kg5 {[%emt 0:00:09]} 53. a6 {[%emt 0:00:05]} Kg6 {[%emt 0:00:40]} 54. a7 {[%emt 0:00:04]} Kg5 {[%emt 0:00:13]} 55. a8=Q {[%emt 0:00:08]} Kg4 {[%emt 0:00:25]} 56. Rf3 {[%emt 0:00:13]} Kg5 {[%emt 0:00:29]} 57. Qg8+ {[%emt 0:00:05]} 1-0

[Event "CZE-ch Youth G10-G12-G14 2022"]
[Site "Luhacovice"]
[Date "2022.03.14"]
[Round "4.23"]
[White "Kubatova Beta"]
[Black "Barteckova, Valerie"]
[Result "0-1"]
[ECO "C45"]
[WhiteElo "1071"]
[BlackElo "1250"]
[Annotator "NA"]
[PlyCount "45"]
[EventDate "2022.03.12"]
[EventType "swiss"]
[EventCountry "CZE"]
[SourceTitle "playchess.com"]
[Source "ChessBase"]
[SourceQuality "1"]
[TimeControl "40/5400+30:1800+30"]

1. e4 {[%emt 0:00:09]} e5 {[%emt 0:00:19]} 2. Nf3 {[%emt 0:00:18]} Nc6 {[%emt 0:00:15]} 3. d4 {[%emt 0:00:41]} exd4 {[%emt 0:00:24]} 4. Nxd4 {[%emt 0:00:15]} Bc5 {[%emt 0:00:31]} 5. Nb3 {[%emt 0:00:38]} Bb6 {[%emt 0:00:26]} 6. Nc3 {[%emt 0:01:27]} Qf6 {[%emt 0:01:34]} 7. Qe2 {[%emt 0:21:16]} Nge7 {[%emt 0:03:20]} 8. g3 {[%emt 0:03:49]} d6 {[%emt 0:03:12]} 9. Bg2 {[%emt 0:00:30]} O-O {[%emt 0:03:09]} 10. O-O {[%emt 0:03:18]} Be6 {[%emt 0:10:28]} 11. Be3 {[%emt 0:01:54]} Ne5 {[%emt 0:08:41]} 12. Bxb6 {[%emt 0:04:04]} Bc4 {[%emt 0:05:37]} 13. Qd2 {[%emt 0:00:48]} c6 {[%emt 0:28:46]} 14. Qc1 {[%emt 0:06:01]} N7g6 {[%emt 0:01:10]} 15. Qd1 {[%emt 0:03:09]} Nf3+ {[%emt 0:00:50]} 16. Qxf3 {[%emt 0:00:26]} Qxf3 {[%emt 0:00:26]} 17. Bxf3 {[%emt 0:00:07]} Ne5 {[%emt 0:00:22]} 18. Be2 {[%emt 0:00:19]} Rfe8 {[%emt 0:00:52]} 19. Rfd1 {[%emt 0:00:45]} Red8 {[%emt 0:01:06]} 20. f4 {[%emt 0:00:34]} Ng6 {[%emt 0:00:44]} 21. Bxc4 {[%emt 0:03:53]} Kf8 {[%emt 0:08:18]} 22. Kf2 {[%emt 0:01:37]} h6 {[%emt 0:03:39]} 23. Kf3 {[%emt 0:00:42]} 0-1

[Event "CZE-ch Youth G10-G12-G14 2022"]
[Site "Luhacovice"]
[Date "2022.03.14"]
[Round "4.24"]
[White "Kavanova Valentyna"]
[Black "Souralova, Alena"]
[Result "1-0"]
[ECO "D07"]
[WhiteElo "1000"]
[BlackElo "1010"]
[Annotator "NA"]
[PlyCount "123"]
[EventDate "2022.03.12"]
[EventType "swiss"]
[EventCountry "CZE"]
[SourceTitle "playchess.com"]
[Source "ChessBase"]
[SourceQuality "1"]
[TimeControl "40/5400+30:1800+30"]

1. d4 {[%emt 0:00:05]} d5 {[%emt 0:01:08]} 2. Nf3 {[%emt 0:00:05]} Nc6 {[%emt 0:04:03]} 3. c4 {[%emt 0:00:30]} e5 {[%emt 0:01:30]} 4. Nxe5 {[%emt 0:00:32]} Nxe5 {[%emt 0:01:54]} 5. dxe5 {[%emt 0:00:10]} d4 {[%emt 0:01:43]} 6. Bf4 {[%emt 0:00:52]} Bc5 {[%emt 0:03:13]} 7. a3 {[%emt 0:02:35]} Be6 {[%emt 0:03:36]} 8. b4 {[%emt 0:02:01]} Be7 {[%emt 0:02:35]} 9. Nd2 {[%emt 0:01:05]} f6 {[%emt 0:06:02]} 10. e3 {[%emt 0:03:59]} dxe3 {[%emt 0:01:59]} 11. Bxe3 {[%emt 0:00:41]} fxe5 {[%emt 0:02:50]} 12. Qh5+ {[%emt 0:00:54]} Bf7 {[%emt 0:03:02]} 13. Qxe5 {[%emt 0:00:20]} Nf6 {[%emt 0:02:13]} 14. Be2 {[%emt 0:02:22]} O-O {[%emt 0:03:06]} 15. O-O {[%emt 0:00:26]} Qd7 {[%emt 0:04:05]} 16. Rad1 {[%emt 0:01:20]} Rfe8 {[%emt 0:07:20]} 17. Ne4 {[%emt 0:00:22]} Bd6 {[%emt 0:02:05]} 18. Nxf6+ {[%emt 0:01:00]} gxf6 {[%emt 0:00:58]} 19. Qxf6 {[%emt 0:01:37]} Re6 {[%emt 0:01:44]} 20. Bg4 {[%emt 0:03:07]} Rxf6 {[%emt 0:01:25]} 21. Bxd7 {[%emt 0:00:19]} Bxc4 {[%emt 0:01:10]} 22. Rfe1 {[%emt 0:02:20]} b6 {[%emt 0:04:22]} 23. Rd4 {[%emt 0:01:06]} Be6 {[%emt 0:04:36]} 24. Bxe6+ {[%emt 0:01:10]} Rxe6 {[%emt 0:00:29]} 25. g3 {[%emt 0:01:24]} c5 {[%emt 0:02:53]} 26. Rg4+ {[%emt 0:00:16]} Kh8 {[%emt 0:00:58]} 27. Kf1 {[%emt 0:02:47]} cxb4 {[%emt 0:01:49]} 28. Bd4+ {[%emt 0:00:05]} Be5 {[%emt 0:01:49]} 29. Bxe5+ {[%emt 0:01:23]} Rxe5 {[%emt 0:00:40]} 30. Rxe5 {[%emt 0:00:10]} bxa3 {[%emt 0:00:46]} 31. Re2 {[%emt 0:00:06]} a5 {[%emt 0:00:41]} 32. Ra2 {[%emt 0:00:09]} b5 {[%emt 0:01:46]} 33. Rxa3 {[%emt 0:00:13]} b4 {[%emt 0:01:27]} 34. Rb3 {[%emt 0:00:20]} Rb8 {[%emt 0:00:15]} 35. Rb1 {[%emt 0:00:09]} Rb5 {[%emt 0:02:27]} 36. Re1 {[%emt 0:00:55]} Rb8 {[%emt 0:01:49]} 37. Rb1 {[%emt 0:02:38]} Rb5 {[%emt 0:01:45]} 38. Ke2 {[%emt 0:00:35]} h5 {[%emt 0:00:36]} 39. Rh4 {[%emt 0:00:30]} Kg7 {[%emt 0:00:30]} 40. Rf4 {[%emt 0:02:06]} Kg6 {[%emt 0:01:54]} 41. Rd1 {[%emt 0:32:26]} Kg5 {[%emt 0:31:19]} 42. h4+ {[%emt 0:00:11]} Kg6 {[%emt 0:01:35]} 43. Rd6+ {[%emt 0:00:24]} Kg7 {[%emt 0:00:40]} 44. Rc4 {[%emt 0:01:14]} Rb7 {[%emt 0:02:02]} 45. Ra6 {[%emt 0:01:26]} a4 {[%emt 0:01:28]} 46. Rxa4 {[%emt 0:00:10]} Kg6 {[%emt 0:00:27]} 47. Raxb4 {[%emt 0:00:37]} Rxb4 {[%emt 0:00:24]} 48. Rxb4 {[%emt 0:00:04]} Kf5 {[%emt 0:00:28]} 49. Kf3 {[%emt 0:01:05]} Ke5 {[%emt 0:00:35]} 50. Rb5+ {[%emt 0:00:51]} Kd4 {[%emt 0:00:35]} 51. Rxh5 {[%emt 0:00:21]} Kd3 {[%emt 0:00:19]} 52. Re5 {[%emt 0:01:15]} Kd4 {[%emt 0:00:38]} 53. Kf4 {[%emt 0:00:57]} Kd3 {[%emt 0:00:33]} 54. Re4 {[%emt 0:00:03]} Kd2 {[%emt 0:01:04]} 55. Re3 {[%emt 0:00:41]} Kc2 {[%emt 0:00:46]} 56. Ke4 {[%emt 0:00:38]} Kd2 {[%emt 0:00:16]} 57. Kd4 {[%emt 0:01:03]} Kc2 {[%emt 0:00:28]} 58. Rd3 {[%emt 0:00:38]} Kb2 {[%emt 0:00:50]} 59. Kc4 {[%emt 0:00:12]} Kc2 {[%emt 0:00:37]} 60. Kd4 {[%emt 0:01:03]} Kb2 {[%emt 0:00:50]} 61. Rc3 {[%emt 0:03:16]} Ka2 {[%emt 0:01:29]} 62. Kd3 {[%emt 0:00:11]} 1-0

[Event "CZE-ch Youth G10-G12-G14 2022"]
[Site "Luhacovice"]
[Date "2022.03.14"]
[Round "4.25"]
[White "Havelkova Kamila"]
[Black "Zezulova Sara"]
[Result "1-0"]
[ECO "C52"]
[WhiteElo "1092"]
[BlackElo "1000"]
[Annotator "NA"]
[PlyCount "66"]
[EventDate "2022.03.12"]
[EventType "swiss"]
[EventCountry "CZE"]
[SourceTitle "playchess.com"]
[Source "ChessBase"]
[SourceQuality "1"]
[TimeControl "40/5400+30:1800+30"]

1. e4 {[%emt 0:00:08]} e5 {[%emt 0:00:10]} 2. Nf3 {[%emt 0:00:28]} Nc6 {[%emt 0:00:20]} 3. Bc4 {[%emt 0:00:27]} Bc5 {[%emt 0:00:30]} 4. b4 {[%emt 0:00:55]} Bxb4 {[%emt 0:00:31]} 5. c3 {[%emt 0:00:32]} Ba5 {[%emt 0:00:18]} 6. d4 {[%emt 0:01:13]} f6 {[%emt 0:01:07]} 7. O-O {[%emt 0:01:22]} Nge7 {[%emt 0:00:54]} 8. Qb3 {[%emt 0:00:57]} Rf8 {[%emt 0:02:54]} 9. d5 {[%emt 0:02:11]} Ng6 {[%emt 0:01:55]} 10. dxc6 {[%emt 0:01:49]} bxc6 {[%emt 0:00:54]} 11. Ba3 {[%emt 0:00:56]} Nf4 {[%emt 0:02:03]} 12. Bxf8 {[%emt 0:03:32]} Kxf8 {[%emt 0:00:35]} 13. Bg8 {[%emt 0:00:41]} Qe7 {[%emt 0:01:18]} 14. Bxh7 {[%emt 0:02:43]} Qf7 {[%emt 0:01:57]} 15. Qa3+ {[%emt 0:01:16]} d6 {[%emt 0:01:59]} 16. Qxa5 {[%emt 0:01:33]} Ne2+ {[%emt 0:01:10]} 17. Kh1 {[%emt 0:01:20]} Bg4 {[%emt 0:04:07]} 18. Nh4 {[%emt 0:03:36]} Rc8 {[%emt 0:03:55]} 19. Ng6+ {[%emt 0:01:28]} Ke8 {[%emt 0:01:38]} 20. Qa6 {[%emt 0:07:13]} Rd8 {[%emt 0:02:28]} 21. Qxc6+ {[%emt 0:01:01]} Rd7 {[%emt 0:01:05]} 22. Nh4 {[%emt 0:02:46]} Ke7 {[%emt 0:03:23]} 23. Ng6+ {[%emt 0:04:11]} Ke8 {[%emt 0:05:15]} 24. Nd2 {[%emt 0:08:34]} f5 {[%emt 0:04:14]} 25. Rab1 {[%emt 0:00:59]} Qe6 {[%emt 0:08:15]} 26. Rb8+ {[%emt 0:02:07]} Kf7 {[%emt 0:01:01]} 27. Bg8+ {[%emt 0:00:46]} Kf6 {[%emt 0:00:26]} 28. Bxe6 {[%emt 0:00:14]} Kxe6 {[%emt 0:00:27]} 29. Re8+ {[%emt 0:01:34]} Kf7 {[%emt 0:00:19]} 30. Rf8+ {[%emt 0:01:10]} Kxg6 {[%emt 0:01:07]} 31. Qxd7 {[%emt 0:00:45]} Kg5 {[%emt 0:00:41]} 32. Qxg7+ {[%emt 0:00:43]} Kh4 {[%emt 0:01:01]} 33. Rh8+ {[%emt 0:01:37]} Bh5 {[%emt 0:00:15]} 1-0